[Event "Croatian 1B League 2022"]
[Site "Porec"]
[Date "2022.09.24"]
[Round "1.1"]
[White "Brkic, Ante"]
[Black "Doric, Darko"]
[Result "1-0"]
[ECO "B66"]
[WhiteElo "2602"]
[BlackElo "2457"]
[Annotator "TA"]
[PlyCount "57"]
[EventDate "2022.09.24"]
[EventType "team-tourn"]
[EventCountry "CRO"]
[SourceTitle "playchess.com"]
[Source "ChessBase"]
[SourceQuality "1"]
[TimeControl "40/5400+30:1800+30"]

{[%evp 21,57,0,0,0,0,17,37,34,41,46,35,35,81,33,184,184,177,188,187,187,175,163,166,127,128,89,91,68,106,89,189,190,140,175,175,149,579,558]} 1. e4 {[%emt 0:01:00]} c5 {[%emt 0:01:00]} 2. Nf3 {[%emt 0:00:00]} d6 {[%emt 0:00:00]} 3. d4 {[%emt 0:02:00]} cxd4 {[%emt 0:00:00]} 4. Nxd4 {[%emt 0:00:30]} Nf6 {[%emt 0:00:30]} 5. Nc3 {[%emt 0:00:00]} Nc6 {[%emt 0:00:00]} 6. Bg5 {[%emt 0:00:00]} e6 {[%emt 0:00:00]} 7. Qd2 {[%emt 0:01:30]} a6 {[%emt 0:01:30]} 8. Nxc6 {[%emt 0:02:30]} bxc6 {[%emt 0:00:30]} 9. O-O-O {[%emt 0:00:00]} h6 {[%emt 0:14:30]} 10. Bf4 {[%emt 0:01:00]} d5 {[%emt 0:00:30]} 11. Qe3 {[%emt 0:10:30]} Bb4 {[%emt 0:06:30]} 12. Be2 $1 {[%emt 0:00:30] 12.Be2 is better than 12.a3. B66: Sicilian: Richter-Rauzer: 7...a6 8 0-0-0 h6.} O-O {[%emt 0:03:30]} 13. e5 {[%emt 0:02:30]} Nh7 {[%emt 0:00:30]} 14. a3 {[%emt 0:04:30] White is slightly better.} Be7 {[%emt 0:01:30]} 15. Ne4 {[%emt 0:00:30][%cal Oh2h4]} f5 {[%emt 0:00:30]} 16. Nd6 {[%emt 0:00:30] [#]} a5 $146 {[%emt 0:00:30]} (16... Ng5 $14) ({Predecessor:} 16... Ng5 17. h4 Ne4 18. Nxe4 fxe4 19. Qg3 Kh8 20. Bxh6 gxh6 21. Qg6 Rxf2 22. Qxh6+ Kg8 {½-½ (31) Kaidanov,G (2548)-Dlugy,M (2513) Saint Louis 2022}) 17. Qg3 {[%emt 0:00:30] White is much more active.} ({White should play} 17. h4 $16) 17... Bg5 $2 {[%emt 0:00:30]} (17... Bxd6 $14 18. exd6 Ng5) 18. h4 $1 $18 {[%emt 0:00:30]} Bxf4+ {[%emt 0:00:30]} 19. Qxf4 {[%emt 0:00:30]} Ba6 {[%emt 0:00:30]} 20. Bxa6 {[%emt 0:00:30]} Rxa6 {[%emt 0:00:30]} 21. Rd3 {[%emt 0:00:30][%cal Bd1d3,Bd3g3,Bg3g6][%mdl 32]} Kh8 {[%emt 0:00:30]} 22. Rg3 {[%emt 0:00:30] aiming for Rg6.} Ra7 {[%emt 0:00:30]} 23. Rg6 {[%emt 0:00:30]} Re7 {[%emt 0:00:30]} 24. Rh3 $36 {[%emt 0:00:30][%mdl 2048] White has good play.} Qc7 {[%emt 0:00:30]} 25. Kb1 {[%emt 0:00:30]} Qa7 {[%emt 0:00:30] [#]} (25... Ra8 $16 {was necessary.}) 26. Rc3 $1 {[%emt 0:00:30]} c5 {[%emt 0:00:30] [#]} 27. g4 $1 {[%emt 0:00:30]} fxg4 {[%emt 0:00:30]} 28. Qxg4 {[%emt 0:00:30]} Rxf2 $2 {[%emt 0:00:30][%mdl 8192]} (28... c4 $16 {is more resistant.}) 29. Nc8 {[%emt 0:00:30] Weighted Error Value: White=0.09 (flawless) /Black=0.58} 1-0

[Event "Croatian 1B League 2022"]
[Site "Porec"]
[Date "2022.09.24"]
[Round "1.2"]
[White "Maksimovic, Bojan"]
[Black "Saraci, Nderim"]
[Result "1-0"]
[ECO "C95"]
[WhiteElo "2468"]
[BlackElo "2490"]
[Annotator "TA"]
[PlyCount "51"]
[EventDate "2022.09.24"]
[EventType "team-tourn"]
[EventCountry "CRO"]
[SourceTitle "playchess.com"]
[Source "ChessBase"]
[SourceQuality "1"]
[TimeControl "40/5400+30:1800+30"]

{[%evp 24,51,47,32,49,29,39,0,0,-4,42,53,53,45,47,24,41,43,81,60,210,204,198,201,200,194,183,62,62,58]} 1. e4 {[%emt 0:01:00]} e5 {[%emt 0:01:00]} 2. Nf3 {[%emt 0:00:00]} Nc6 {[%emt 0:00:00]} 3. Bb5 {[%emt 0:00:00][%cal Bf1b5,Bb5a4,Ba4b3][%mdl 32]} a6 {[%emt 0:02:00]} 4. Ba4 {[%emt 0:00:30]} Nf6 {[%emt 0:00:30]} 5. O-O {[%emt 0:00:00]} Be7 {[%emt 0:00:30]} 6. Re1 {[%emt 0:00:00]} b5 {[%emt 0:00:30]} 7. Bb3 {[%emt 0:00:00]} d6 {[%emt 0:00:30]} 8. c3 {[%emt 0:00:00][%cal Bc2c3,Bc3c4][%mdl 32]} O-O {[%emt 0:00:30]} 9. h3 {[%emt 0:00:30]} Nb8 {[%emt 0:08:30]} 10. d4 {[%emt 0:00:30]} Nbd7 {[%emt 0:00:30]} 11. c4 {[%emt 0:03:30]} Bb7 {[%emt 0:10:30]} 12. Nc3 {[%emt 0:02:30]} c6 {[%emt 0:10:30]} 13. a3 {[%emt 0:00:30]} Rc8 {[%emt 0:13:30] C95: Closed Ruy Lopez: Breyer Variation with 10 d4.} 14. cxb5 {[%emt 0:00:30]} cxb5 {[%emt 0:00:30] [#]} 15. dxe5 $146 {[%emt 0:00:30]} ({Predecessor:} 15. Bg5 h6 16. dxe5 dxe5 17. Bxf6 Bxf6 18. Bd5 Bxd5 19. Nxd5 Nb6 20. Nxb6 Qxb6 21. Qb3 {0-1 (55) Paehtz,E (2464)-Gledura,B (2612) Caleta 2018}) 15... dxe5 {[%emt 0:00:30][%cal Oe7a3] The position is equal.} 16. Bg5 {[%emt 0:00:30] [#]} b4 {[%emt 0:00:30]} (16... Bxa3 $1 $11 {might be stronger.} 17. Rxa3 b4 18. Bxf6 Nxf6 19. Qxd8 Rfxd8 20. Nxe5 bxa3 21. Nxf7 Re8 22. Nd6+ Kf8 23. Nxc8 (23. Nxb7 $2 axb2 24. Na2 Rb8 $19) 23... Rxc8) 17. axb4 $14 {[%emt 0:00:30]} Bxb4 {[%emt 0:00:30]} 18. Bxf6 {[%emt 0:00:30]} Nxf6 {[%emt 0:00:30]} 19. Qxd8 {[%emt 0:00:30]} Rcxd8 {[%emt 0:00:30]} 20. Nxe5 {[%emt 0:00:30]} Bxc3 {[%emt 0:00:30]} 21. bxc3 {[%emt 0:00:30]} Nxe4 {[%emt 0:00:30]} (21... Rde8 $14) 22. Nxf7 $1 $18 {[%emt 0:00:30]} Rxf7 {[%emt 0:00:30] [#]} 23. Rad1 $1 {[%emt 0:00:30][%cal Rd1d8]} Rdf8 {[%emt 0:00:30] [#]} (23... Rxd1 $2 24. Rxd1 Kf8 25. Bxf7 $18) 24. Rd7 $1 {[%emt 0:00:30][%mdl 64] Pin} Ba8 {[%emt 0:00:30]} 25. Rxf7 {[%emt 0:00:30]} ({Don't play} 25. Bxf7+ $6 Rxf7 26. Rd4 (26. Rd8+ Rf8 $16) 26... Bb7 $14) ({White should try} 25. Red1 $18 Ng5 26. f4 (26. Bxf7+ Nxf7 27. Re1 Rb8 $16)) 25... Rxf7 $14 {[%emt 0:00:30]} 26. Rd1 {[%emt 0:00:30] Weighted Error Value: White=0.16 (very precise) /Black=0.45} 1-0

[Event "Croatian 1B League 2022"]
[Site "Porec"]
[Date "2022.09.24"]
[Round "1.3"]
[White "Milanovic, Danilo"]
[Black "Cabarkapa, Novak"]
[Result "1/2-1/2"]
[ECO "A48"]
[WhiteElo "2403"]
[BlackElo "2433"]
[Annotator "TA"]
[PlyCount "43"]
[EventDate "2022.09.24"]
[EventType "team-tourn"]
[EventCountry "CRO"]
[SourceTitle "playchess.com"]
[Source "ChessBase"]
[SourceQuality "1"]
[TimeControl "40/5400+30:1800+30"]

{[%evp 21,30,12,15,10,15,9,10,0,11,0,0]} 1. d4 {[%emt 0:01:00]} Nf6 {[%emt 0:01:00]} 2. Nf3 {[%emt 0:00:00]} g6 {[%emt 0:00:30]} 3. Nbd2 {[%emt 0:00:00]} c5 {[%emt 0:01:30]} 4. dxc5 {[%emt 0:04:30]} Qa5 {[%emt 0:00:30]} 5. a3 {[%emt 0:00:30]} Qxc5 {[%emt 0:00:00]} 6. b4 {[%emt 0:00:30]} Qc7 {[%emt 0:00:00]} 7. Bb2 {[%emt 0:00:30]} Bg7 {[%emt 0:00:30]} 8. c4 {[%emt 0:02:30]} O-O {[%emt 0:00:00]} 9. e3 {[%emt 0:00:30]} b6 {[%emt 0:01:00]} 10. Be2 {[%emt 0:00:30]} Bb7 {[%emt 0:00:30]} 11. O-O {[%emt 0:03:30]} d6 {[%emt 0:00:00] The position is equal.} 12. Rc1 {[%emt 0:01:30] A48: 1 d4 Nf6 2 Nf3 g6: Torre, London and Colle Systems.} Nbd7 {[%emt 0:00:00]} 13. Qc2 {[%emt 0:26:30]} Rac8 {[%emt 0:02:30]} 14. Qb1 {[%emt 0:00:30]} Qb8 {[%emt 0:02:30]} 15. Qa1 {[%emt 0:05:30]} Qa8 {[%emt 0:00:30] [#] Not much happened in this game.  Weighted Error Value: White=0.08 (flawless) /Black=0.04 (flawless)} {Predecessor:} 16. Rfd1 $146 a6 17. Bf1 Bh6 18. Nd4 Rc7 19. a4 a5 20. Nb5 Rc6 21. Be2 axb4 22. Bf3 {0-1 (41) Merkel,M (2133)-Danin,A (2540) Karlsruhe 2018} 1/2-1/2

[Event "Croatian 1B League 2022"]
[Site "Porec"]
[Date "2022.09.24"]
[Round "1.4"]
[White "Vojak, Daniel"]
[Black "Bubalovic, Davorin"]
[Result "1-0"]
[ECO "B43"]
[WhiteElo "2300"]
[BlackElo "2201"]
[Annotator "TA"]
[PlyCount "60"]
[EventDate "2022.09.24"]
[EventType "team-tourn"]
[EventCountry "CRO"]
[SourceTitle "playchess.com"]
[Source "ChessBase"]
[SourceQuality "1"]
[TimeControl "40/5400+30:1800+30"]

{[%evp 12,60,34,8,10,0,0,9,0,0,0,-1,0,0,0,-11,0,0,0,5,6,4,7,-7,0,0,0,0,70,70,81,74,69,65,78,77,81,84,197,188,186,199,693,687,645,648,891,892,1983,1930,1298]} 1. e4 {[%emt 0:01:00]} c5 {[%emt 0:01:00]} 2. Nf3 {[%emt 0:00:00]} e6 {[%emt 0:00:00]} 3. d4 {[%emt 0:00:00]} cxd4 {[%emt 0:00:00]} 4. Nxd4 {[%emt 0:00:30]} a6 {[%emt 0:00:00]} 5. Nc3 {[%emt 0:00:30]} Qc7 {[%emt 0:01:00]} 6. f4 {[%emt 0:03:30]} b5 {[%emt 0:03:30]} 7. Bd3 {[%emt 0:03:30]} Bb7 {[%emt 0:00:30] B43: Sicilian: Kan Variation: 5 Nc3.} 8. a3 {[%emt 0:07:30]} Nf6 {[%emt 0:06:30]} 9. Qe2 {[%emt 0:05:30]} Be7 {[%emt 0:06:30] [#] The position is equal.} 10. Bd2 $146 {[%emt 0:10:30]} ({Predecessor:} 10. g4 d5 11. e5 Nfd7 12. Be3 Nc6 13. Qf2 Nxd4 14. Bxd4 Bc5 15. Ne2 Bxd4 16. Nxd4 {0-1 (39) Gologorsky,R (2057)-Jansen van Rensburg,M (1730) Caldas Novas 2011}) 10... Nc6 {[%emt 0:00:30]} 11. Nxc6 {[%emt 0:00:30]} dxc6 {[%emt 0:00:30]} 12. a4 {[%emt 0:04:30]} O-O {[%emt 0:00:30]} 13. O-O {[%emt 0:00:30]} g6 {[%emt 0:00:30]} 14. e5 {[%emt 0:00:30]} Nd7 {[%emt 0:00:30]} 15. Ne4 {[%emt 0:00:30]} Nc5 {[%emt 0:00:30]} 16. Nxc5 {[%emt 0:00:30]} Bxc5+ {[%emt 0:00:30]} 17. Be3 {[%emt 0:00:30]} Qb6 {[%emt 0:00:30]} 18. Bxc5 {[%emt 0:00:30]} Qxc5+ {[%emt 0:00:30]} 19. Qf2 {[%emt 0:00:30]} Qxf2+ {[%emt 0:00:30]} (19... Qb4 $11) 20. Kxf2 $14 {[%emt 0:00:30]} Rfd8 {[%emt 0:00:30]} 21. Rfd1 {[%emt 0:00:30]} Rd4 {[%emt 0:00:30][%csl LRa4,LRf4]} 22. Ke3 {[%emt 0:00:30]} Rad8 {[%emt 0:00:30]} 23. c3 {[%emt 0:00:30]} R4d5 {[%emt 0:00:30]} 24. Be2 $36 {[%emt 0:00:30][%mdl 2048] Black is under strong pressure.} f6 {[%emt 0:00:30]} (24... c5 $16) 25. Rxd5 $18 {[%emt 0:00:30]} (25. exf6 $6 Kf7 $16) 25... Rxd5 {[%emt 0:00:30]} 26. axb5 {[%emt 0:00:30]} ({Resist} 26. exf6 $6 e5 $16) 26... fxe5 $2 {[%emt 0:00:30]} (26... cxb5 27. Bf3 (27. exf6 e5 $16) 27... Rd7 28. Bxb7 (28. exf6 Bxf3 29. Kxf3 Kf7 $16) 28... Rxb7 29. exf6 (29. Rxa6 fxe5 30. fxe5 Kf7 $16) 29... h6) 27. bxa6 {[%emt 0:00:30] White is clearly winning.} exf4+ {[%emt 0:00:30]} 28. Kxf4 {[%emt 0:00:30] KRB-KRB} Ba8 {[%emt 0:00:30]} 29. Rd1 {[%emt 0:00:30] [#] Rxd5 is the strong threat.} Kf7 {[%emt 0:00:30]} 30. Rxd5 {[%emt 0:00:30]} exd5 {[%emt 0:00:30] Weighted Error Value: White=0.03 (flawless) /Black=0.48} 1-0

[Event "Croatian 1B League 2022"]
[Site "Porec"]
[Date "2022.09.24"]
[Round "1.5"]
[White "Soldo, Robert"]
[Black "Cupic, Lovro"]
[Result "1/2-1/2"]
[ECO "D85"]
[WhiteElo "2115"]
[BlackElo "2216"]
[Annotator "TA"]
[PlyCount "24"]
[EventDate "2022.09.24"]
[EventType "team-tourn"]
[EventCountry "CRO"]
[SourceTitle "playchess.com"]
[Source "ChessBase"]
[SourceQuality "1"]
[TimeControl "40/5400+30:1800+30"]

{[%evp 18,24,45,57,52,39,45,37,54]} 1. d4 {[%emt 0:01:00]} Nf6 {[%emt 0:01:00]} 2. c4 {[%emt 0:00:30]} g6 {[%emt 0:00:00]} 3. Nc3 {[%emt 0:00:00]} d5 {[%emt 0:00:00]} 4. Nf3 {[%emt 0:00:00]} Bg7 {[%emt 0:00:30]} 5. cxd5 {[%emt 0:00:30]} Nxd5 {[%emt 0:00:00]} 6. e4 {[%emt 0:00:30]} Nxc3 {[%emt 0:00:00]} 7. bxc3 {[%emt 0:00:30]} c5 {[%emt 0:00:30]} 8. Be3 {[%emt 0:00:00]} O-O {[%emt 0:03:30]} 9. Be2 {[%emt 0:02:00]} Nc6 {[%emt 0:06:30]} 10. O-O {[%emt 0:02:30] White is slightly better.} Qc7 {[%emt 0:06:30] D85: Exchange Grünfeld: Unusual White 7th moves and lines with 7 Nf3.} 11. Qa4 {[%emt 0:05:30] [#]} Rd8 $146 {[%emt 0:13:30]} ({Predecessor:} 11... Bd7 12. Qa3 Qa5 13. Qb3 Qc7 14. dxc5 Be6 15. Qb2 Na5 16. Qb4 Nc6 17. Qb2 Rfc8 18. Nd4 {1-0 (76) Gavasheli,A (2193)-Khotenashvili,B (2493) Tbilisi 2016}) 12. Rfd1 {[%emt 0:06:30]} Bd7 {[%emt 0:04:30] Weighted Error Value: White=0.07 (flawless) /Black=0.03 (flawless)} 1/2-1/2

[Event "Croatian 1B League 2022"]
[Site "Porec"]
[Date "2022.09.24"]
[Round "1.6"]
[White "Novosel, Lovro"]
[Black "Dabic, Stjepan"]
[Result "1-0"]
[ECO "A15"]
[WhiteElo "2274"]
[BlackElo "2096"]
[Annotator "TA"]
[PlyCount "73"]
[EventDate "2022.09.24"]
[EventType "team-tourn"]
[EventCountry "CRO"]
[SourceTitle "playchess.com"]
[Source "ChessBase"]
[SourceQuality "1"]
[TimeControl "40/5400+30:1800+30"]

{[%evp 16,73,26,25,29,29,25,35,50,45,54,29,39,12,70,76,73,70,79,81,80,43,127,129,119,122,110,110,331,343,384,393,481,489,500,486,1037,741,968,0,640,627,724,708,670,665,695,732,678,725,724,657,693,685,29986,1324,29987,29988,29984,5949]} 1. Nf3 {[%emt 0:01:00]} Nf6 {[%emt 0:02:00]} 2. c4 {[%emt 0:00:30]} g6 {[%emt 0:00:00]} 3. g3 {[%emt 0:00:30]} Bg7 {[%emt 0:00:00]} 4. Bg2 {[%emt 0:00:30]} O-O {[%emt 0:00:30]} 5. O-O {[%emt 0:00:30]} d6 {[%emt 0:00:30]} 6. Nc3 {[%emt 0:01:30]} e5 {[%emt 0:01:30]} 7. b4 {[%emt 0:01:30][%cal Bb2b4,Bb4b5][%mdl 32]} Nc6 {[%emt 0:11:30]} 8. b5 {[%emt 0:07:30]} Ne7 {[%emt 0:02:30]} 9. Bb2 {[%emt 0:02:30]} Nd7 {[%emt 0:23:30] A15: English Opening: 1...Nf6.} 10. e3 {[%emt 0:00:30]} Nb6 {[%emt 0:00:30]} 11. Qe2 {[%emt 0:00:30]} (11. d3 {looks sharper.} e4 12. Nd2 exd3 13. Na4) 11... Be6 {[%emt 0:00:30] [#] Hoping for ...e4. White is slightly better.} 12. d3 {[%emt 0:00:30] [#]} c5 $146 {[%emt 0:00:30]} ({Predecessor:} 12... h6 13. a4 a5 14. bxa6 Rxa6 15. Nd2 c6 16. Nb3 Qc7 17. Rfc1 Rfa8 18. a5 Nd7 {1-0 (67) Patuzzo,F (2317)-Hochstrasser,M (2323) Switzerland 2003}) 13. bxc6 {[%emt 0:00:30]} Nxc6 {[%emt 0:00:30]} 14. Rab1 {[%emt 0:00:30]} Rb8 {[%emt 0:00:30]} (14... d5 $11) 15. Ba3 $14 {[%emt 0:00:30]} Re8 {[%emt 0:00:30]} 16. Rfc1 {[%emt 0:00:30]} (16. h4 $5 {[%cal Rf3g5]}) 16... Bf8 {[%emt 0:00:30]} 17. Nd2 {[%emt 0:00:30]} f5 {[%emt 0:00:30]} 18. Nd5 {[%emt 0:00:30]} Bxd5 {[%emt 0:00:30] White leaves nothing to chance now.} (18... Nd7 $14) 19. cxd5 $16 {[%emt 0:00:30]} Ne7 {[%emt 0:00:30]} 20. e4 {[%emt 0:00:30] White is more active.} Qd7 {[%emt 0:00:30]} 21. Qe3 {[%emt 0:00:30]} f4 $2 {[%emt 0:00:30]} (21... Rbc8 $16 {was worth a try.}) 22. gxf4 $18 {[%emt 0:00:30]} Qa4 {[%emt 0:00:30]} 23. Bb2 {[%emt 0:00:30]} (23. Bxd6 Nexd5 24. exd5 Bxd6 $16) 23... Bh6 {[%emt 0:00:30]} 24. Qh3 {[%emt 0:00:30]} Bxf4 {[%emt 0:00:30]} 25. Qe6+ {[%emt 0:00:30]} Kh8 {[%emt 0:00:30]} (25... Kg7 $142 26. Rc7 Kh6 27. Rxe7 Rxe7 28. Qxe7 Bxd2 29. Qxd6 Re8) 26. Qf6+ {[%emt 0:00:30]} Kg8 {[%emt 0:00:30]} 27. Qe6+ {[%emt 0:00:30]} Kh8 $1 {[%emt 0:00:30] [#] And now ...Nexd5 would win.} 28. Qxd6 {[%emt 0:00:30]} Ng8 {[%emt 0:00:30] Prevents Qf6+.} 29. Nf3 {[%emt 0:00:30][%cal Rf3e5]} Nd7 {[%emt 0:00:30]} 30. Bh3 {[%emt 0:00:30] A strong pair of Bishops.} ({Weaker is} 30. Rc7 Qxa2 31. Rf1 (31. Qxd7 Qxb1+ 32. Bf1 Re7 $16) 31... Qxb2 $18) 30... Ngf6 {[%emt 0:00:30]} 31. Bxd7 {[%emt 0:00:30]} Nxd7 {[%emt 0:00:30]} 32. Rc7 {[%emt 0:00:30]} Rbd8 {[%emt 0:00:30]} 33. Rxb7 {[%emt 0:00:30]} Kg8 {[%emt 0:00:30]} 34. Kg2 {[%emt 0:00:30]} h6 {[%emt 0:00:30]} 35. Bc1 {[%emt 0:00:30]} (35. Qxg6+ $142 Kf8 36. Qf5+ Kg8 37. Kh1 Bg3 38. Qg6+ Kf8 39. Qxh6+ Kg8 40. Rg1) 35... Kg7 {[%emt 0:00:30]} 36. Bxf4 {[%emt 0:00:30]} exf4 {[%emt 0:00:30]} 37. Ne5 {[%emt 0:00:30] Weighted Error Value: White=0.36/Black=0.72} 1-0

[Event "Croatian 1B League 2022"]
[Site "Porec"]
[Date "2022.09.24"]
[Round "1.7"]
[White "Draskovic, Luka"]
[Black "Teclaf, Pawel"]
[Result "1-0"]
[ECO "B23"]
[WhiteElo "2492"]
[BlackElo "2547"]
[Annotator "TA"]
[PlyCount "33"]
[EventDate "2022.09.24"]
[EventType "team-tourn"]
[EventCountry "CRO"]
[SourceTitle "playchess.com"]
[Source "ChessBase"]
[SourceQuality "1"]
[TimeControl "40/5400+30:1800+30"]

{[%evp 10,20,18,12,10,7,37,6,18,-9,-7,-4,0]} 1. e4 {[%emt 0:01:00]} c5 {[%emt 0:01:00]} 2. Nc3 {[%emt 0:00:30]} a6 {[%emt 0:00:00]} 3. g3 {[%emt 0:00:30]} b5 {[%emt 0:01:00]} 4. Bg2 {[%emt 0:00:30]} Bb7 {[%emt 0:00:30]} 5. d3 {[%emt 0:02:30]} e6 {[%emt 0:00:30]} 6. Nh3 {[%emt 0:00:30]} Nf6 {[%emt 0:16:30] 6...Nf6 has become a bit dusty these days. B23: Closed Sicilian: Lines without g3.} 7. O-O {[%emt 0:01:30]} b4 {[%emt 0:06:30]} 8. Ne2 {[%emt 0:00:30]} Be7 {[%emt 0:04:30] The position is equal.} 9. f4 {[%emt 0:09:30]} O-O {[%emt 0:02:30]} 10. Nf2 {[%emt 0:02:30]} d5 {[%emt 0:04:30][%mdl 32768] [#] A rather calm draw.  Weighted Error Value: White=0.12 (very precise) /Black=0.10 (very precise) . Loss on time!?} {Predecessor:} 11. Be3 $146 Nc6 12. g4 a5 13. Ng3 a4 14. g5 Ne8 15. Qh5 Nd4 16. Bxd4 cxd4 17. e5 {0-1 (40) Pultinevicius,P (2093)-Kulaots,K (2563) Wroclaw 2014} 1-0

[Event "Croatian 1B League 2022"]
[Site "Porec"]
[Date "2022.09.24"]
[Round "1.8"]
[White "Sprenger, Jan Michael"]
[Black "Skuhala, Jernej"]
[Result "1/2-1/2"]
[WhiteElo "2475"]
[BlackElo "2349"]
[Annotator "TA"]
[PlyCount "32"]
[EventDate "2022.09.24"]
[EventType "team-tourn"]
[EventCountry "CRO"]
[SourceTitle "playchess.com"]
[Source "ChessBase"]
[SourceQuality "1"]
[TimeControl "40/5400+30:1800+30"]

{[%evp 11,19,32,21,30,32,4,29,22,42,0]} 1. e4 {[%emt 0:01:00]} c6 {[%emt 0:01:00]} 2. d4 {[%emt 0:00:00]} d5 {[%emt 0:00:00]} 3. e5 {[%emt 0:00:00]} Bf5 {[%emt 0:00:00]} 4. Nf3 {[%emt 0:00:30]} e6 {[%emt 0:00:00]} 5. Be2 {[%emt 0:00:00]} h6 {[%emt 0:00:00]} 6. O-O {[%emt 0:02:00]} Ne7 {[%emt 0:00:30]} 7. Nbd2 {[%emt 0:02:30] B12: Caro-Kann: Advance Variation.} Nd7 {[%emt 0:00:00]} 8. a4 {[%emt 0:00:30]} g5 {[%emt 0:16:00] 8...a5 deserves study.} 9. Nb3 {[%emt 0:07:30]} Bg7 {[%emt 0:09:30]} 10. Ne1 {[%emt 0:06:30] [#] Black got outplayed after the opening.  Weighted Error Value: White=0.12 (very precise) /Black=0.06 (flawless)} (10. a5 $5 {[%cal Rc1d2]}) {Predecessor:} 10... Qc7 $146 11. Bd2 c5 12. dxc5 Bxe5 13. Nf3 Bxb2 14. Rb1 Bg7 15. Nfd4 O-O 16. Nb5 Qc6 {0-1 (78) Movsesian,S (2632)-Vachier Lagrave,M (2838) Riga 2021} 1/2-1/2

[Event "Croatian 1B League 2022"]
[Site "Porec"]
[Date "2022.09.24"]
[Round "1.9"]
[White "Segovic, Goran"]
[Black "Muha, Miljenko"]
[Result "1-0"]
[ECO "C02"]
[WhiteElo "2304"]
[BlackElo "2298"]
[Annotator "TA"]
[PlyCount "29"]
[EventDate "2022.09.24"]
[EventType "team-tourn"]
[EventCountry "CRO"]
[SourceTitle "playchess.com"]
[Source "ChessBase"]
[SourceQuality "1"]
[TimeControl "40/5400+30:1800+30"]

{[%evp 13,29,-9,-4,-4,-7,-16,-10,-12,0,0,0,0,0,0,0,0,0,-14]} 1. e4 {[%emt 0:01:00]} e6 {[%emt 0:01:00]} 2. d4 {[%emt 0:00:30]} d5 {[%emt 0:00:00]} 3. e5 {[%emt 0:00:30]} c5 {[%emt 0:00:00]} 4. c3 {[%emt 0:00:30]} Nc6 {[%emt 0:00:30]} 5. Nf3 {[%emt 0:00:30]} Bd7 {[%emt 0:00:30]} 6. a3 {[%emt 0:00:30]} c4 {[%emt 0:00:30]} 7. Be2 {[%emt 0:01:30]} Na5 {[%emt 0:00:30] The position is equal.} 8. Nbd2 {[%emt 0:00:30] C02: French: Advance Variation.} Ne7 {[%emt 0:00:30]} 9. h4 {[%emt 0:02:30]} Qc7 {[%emt 0:02:30] [#]} 10. Rb1 $146 {[%emt 0:03:30]} ({Predecessor:} 10. Qc2 f6 11. exf6 gxf6 12. b3 cxb3 13. Nxb3 Ba4 14. Nfd2 Nec6 15. Bh5+ Kd8 16. Bd1 {0-1 (33) De Lagrave,S (1911)-Holliman,R (1976) Montreal 2014}) 10... Nc8 {[%emt 0:05:30]} 11. Nf1 {[%emt 0:10:30]} Nb6 {[%emt 0:00:30]} 12. Bf4 {[%emt 0:03:30]} O-O-O {[%emt 0:03:30]} 13. Qd2 {[%emt 0:04:30]} Kb8 {[%emt 0:02:30]} 14. h5 {[%emt 0:04:30]} h6 {[%emt 0:01:30]} 15. g4 {[%emt 0:01:30][%mdl 32768] A rather calm draw.  Weighted Error Value: White=0.00 (flawless) /Black=0.02 (flawless) . Loss on time!?} 1-0

[Event "Croatian 1B League 2022"]
[Site "Porec"]
[Date "2022.09.24"]
[Round "1.10"]
[White "Ivic, Mateo"]
[Black "Zadravec, Matija"]
[Result "1/2-1/2"]
[ECO "C52"]
[WhiteElo "2203"]
[BlackElo "2250"]
[Annotator "TA"]
[PlyCount "34"]
[EventDate "2022.09.24"]
[EventType "team-tourn"]
[EventCountry "CRO"]
[SourceTitle "playchess.com"]
[Source "ChessBase"]
[SourceQuality "1"]
[TimeControl "40/5400+30:1800+30"]

{[%evp 14,21,-13,-21,-32,-21,0,-6,-12,-59]} 1. e4 {[%emt 0:01:00]} e5 {[%emt 0:01:00]} 2. Nf3 {[%emt 0:00:30]} Nc6 {[%emt 0:00:00]} 3. Bc4 {[%emt 0:01:30]} Bc5 {[%emt 0:00:00]} 4. b4 {[%emt 0:01:30]} Bxb4 {[%emt 0:02:30][%cal Bc5b4,Bb4a5,Ba5b6,Bb6a7][%mdl 32]} 5. c3 {[%emt 0:00:30]} Ba5 {[%emt 0:01:30]} 6. d4 {[%emt 0:01:30]} d6 {[%emt 0:00:30]} 7. Qb3 {[%emt 0:02:30]} Qd7 {[%emt 0:00:30]} 8. O-O $1 {[%emt 0:04:30][%mdl 4] is now more promising than 8.dxe5.} Bb6 {[%emt 0:05:30] C52: Evans Gambit Accepted: 5 c3 Ba5.} 9. Bb5 {[%emt 0:07:30] And now d5 would win.} a6 {[%emt 0:04:30]} (9... exd4 10. cxd4 Kf8 11. d5 $14) 10. Ba4 {[%emt 0:06:30]} Ba7 $1 {[%emt 0:01:30] [#] aiming for ...b5.} ({Don't take} 10... exd4 11. cxd4 Kf8 12. d5 $16) 11. Bxc6 {[%emt 0:11:30] [#]  Weighted Error Value: White=0.00 (flawless) /Black=0.00 (flawless)} ({Reject} 11. d5 b5 12. dxc6 Qxc6 $17) (11. Qb2 $11) {Predecessor:} 11... Qxc6 $146 12. dxe5 dxe5 13. Nxe5 Qe6 14. Nf3 Nf6 15. Nbd2 Qxb3 16. axb3 Be6 17. c4 O-O {½-½ (75) Ziegler,A (2341)-Rausis,I (2497) Bugibba 2011} 1/2-1/2